bitfinex-derivatives/quotes_SOLF0:USTF0_20250603
["timestamp","ask_amount","ask_price","bid_price","bid_amount"]
[1748983640556,0.04454431,158.3,158.28,6.3142]
[1748983640756,0.04454431,158.3,158.26,0.04532983]
[1748983641455,6.35804431,158.3,158.26,0.04532983]
[1748983641853,6.35804431,158.3,158.27,6.3145]
[1748983643349,6.35804431,158.3,158.28,6.3142]
[1748983643856,0.04454431,158.3,158.28,6.3142]
[1748983645050,6.35814431,158.3,158.28,6.3142]
[1748983645757,6.35814431,158.3,158.27,6.3145]
[1748983649855,0.04454431,158.3,158.28,6.3143]
[1748983650060,0.04454431,158.3,158.26,0.04532983]
[1748983651167,6.3139,158.29,158.27,6.3145]
[1748983652969,6.35834431,158.3,158.27,6.3145]
[1748983653469,6.3139,158.29,158.27,6.3145]
[1748983654859,6.3147,158.27,158.26,0.04532983]
[1748983655474,6.316,158.24,158.19,44.88820509]
[1748983655774,11.12820509,158.26,158.19,33.76]
[1748983655975,6.3167,158.22,158.19,40.0777]
[1748983656174,11.12820509,158.24,158.17,15.43280509]
[1748983656375,11.12820509,158.22,158.17,2.105]
[1748983656679,17.44570509,158.2,158.13,35.9796]
[1748983656977,11.12820509,158.2,158.13,35.9796]
[1748983657174,6.318,158.19,158.16,6.3188]
[1748983657671,6.3185,158.18,158.15,6.3193]
[1748983657875,6.3185,158.18,158.16,0.04089521]
[1748983658772,6.3187,158.17,158.16,0.04089521]
[1748983659080,11.12820509,158.18,158.06,159.27471607]
[1748983659081,44.90820509,158.18,158.06,159.27471607]
[1748983659280,6.3206,158.13,158.09,6.3216]
[1748983659672,6.3206,158.13,158.08,11.12820509]
[1748983660073,0.04035085,158.12,158.09,0.04190638]
[1748983660476,0.04035085,158.12,158.1,6.3211]
[1748983660673,0.04035085,158.12,158.09,0.04190638]
[1748983660875,11.16855594,158.12,158.09,0.04190638]
[1748983661476,11.16855594,158.12,158.09,6.36350638]
[1748983662289,17.48925594,158.12,158.09,6.36350638]
[1748983663082,11.16855594,158.12,158.09,0.04190638]
[1748983663285,0.04035085,158.12,158.09,0.04190638]
[1748983663684,0.04035085,158.12,158.1,6.3215]
[1748983665182,0.04035085,158.12,158.09,6.36370638]
[1748983665379,0.04035085,158.12,158.09,0.04190638]
[1748983665579,11.16855594,158.12,158.09,0.04190638]
[1748983665978,17.48935594,158.12,158.09,0.04190638]
[1748983666180,0.04035085,158.12,158.09,0.04190638]
[1748983666381,6.36125085,158.12,158.09,0.04190638]
[1748983668082,0.04035085,158.12,158.09,6.36380638]
[1748983668586,0.04035085,158.12,158.09,0.04190638]
[1748983668889,6.36125085,158.12,158.09,0.04190638]
[1748983669694,6.36125085,158.12,158.09,6.36370638]
[1748983669990,6.36125085,158.12,158.09,0.04190638]
[1748983669991,6.3215,158.1,158.09,0.04190638]
[1748983671187,0.04035085,158.12,158.09,0.04190638]
[1748983671785,6.36115085,158.12,158.09,0.04190638]
[1748983672387,6.3212,158.11,158.09,0.04190638]
[1748983673292,0.04035085,158.12,158.09,0.04190638]
[1748983673892,6.3213,158.11,158.09,0.04190638]
[1748983675581,6.36105085,158.12,158.09,6.36360638]
[1748983675788,0.04035085,158.12,158.09,0.04190638]
[1748983676289,6.3211,158.11,158.09,0.04190638]
[1748983679292,6.3215,158.1,158.09,0.04190638]
[1748983679487,11.12820509,158.11,158.05,33.8]
[1748983679800,11.12820509,158.09,158.03,11.12820509]
[1748983679995,17.45030509,158.09,158.06,6.3229]
[1748983680501,11.17301381,158.09,158.06,0.04410611]
[1748983680689,6.3226,158.08,158.06,0.04410611]
[1748983681094,11.17301381,158.09,158.06,0.04410611]
[1748983681399,6.3226,158.08,158.06,0.04410611]
[1748983681595,11.17301381,158.09,158.06,0.04410611]
[1748983681798,6.3225,158.08,158.06,0.04410611]
[1748983682288,6.3225,158.08,158.06,6.36710611]
[1748983682496,17.49501381,158.09,158.06,6.36710611]
[1748983682695,6.36680872,158.09,158.06,0.04410611]
[1748983684101,0.04480872,158.09,158.06,0.04410611]
[1748983684296,33.76,158.17,158.07,11.12820509]
[1748983684494,33.76,158.17,158.08,17.64460509]
[1748983684694,33.76,158.17,158.11,11.12820509]
[1748983685397,0.04620881,158.16,158.12,0.04805113]
[1748983685902,0.04620881,158.16,158.15,6.3192]
[1748983688700,33.76,158.2,158.19,6.3179]
[1748983688901,11.12820509,158.21,158.13,11.12820509]
[1748983689199,6.3182,158.19,158.16,6.3191]
[1748983689406,6.3182,158.19,158.13,11.12820509]
[1748983689792,0.04283904,158.18,158.14,0.04413198]
[1748983689995,6.36123904,158.18,158.15,6.3192]
[1748983690506,11.12820509,158.17,158.14,0.04413198]
[1748983690996,6.3195,158.15,158.14,0.04413198]
[1748983691501,6.3188,158.17,158.14,6.36403198]
[1748983691699,0.04283904,158.18,158.14,0.04413198]
[1748983691893,0.04283904,158.18,158.15,11.12820509]
[1748983692696,0.04283904,158.18,158.16,6.3191]
[1748983692900,0.04283904,158.18,158.15,11.12820509]
[1748983693299,0.04283904,158.18,158.17,6.3187]
[1748983699910,0.04283904,158.18,158.15,11.12820509]
[1748983700303,6.36133904,158.18,158.15,11.12820509]
[1748983701101,6.36133904,158.18,158.15,6.3191]
[1748983701408,6.36133904,158.18,158.14,11.17233707]
[1748983701709,0.04283904,158.18,158.14,11.17233707]
[1748983701911,0.04283904,158.18,158.17,6.3187]
[1748983706013,0.04283904,158.18,158.14,0.04413198]
[1748983706210,11.17104413,158.18,158.14,0.04413198]
[1748983706810,6.3195,158.15,158.14,0.04413198]
[1748983707004,11.17104413,158.18,158.14,0.04413198]
[1748983707519,0.04283904,158.18,158.14,11.17233707]
[1748983707923,6.36143904,158.18,158.15,6.3192]
[1748983708519,6.36143904,158.18,158.14,17.49213707]
[1748983708520,0.04283904,158.18,158.14,17.49213707]
[1748983709617,6.3188,158.17,158.14,17.49213707]
[1748983710124,6.3188,158.17,158.15,6.3194]
[1748983710509,0.04283904,158.18,158.14,11.17233707]
[1748983711232,6.36113904,158.18,158.16,6.3189]
[1748983711427,0.04283904,158.18,158.16,11.12820509]
[1748983711835,0.04283904,158.18,158.16,44.86820509]
[1748983712130,51.29910509,158.26,158.16,47.03320509]
[1748983712431,51.29910509,158.26,158.19,11.12820509]
[1748983712629,6.3165,158.23,158.2,6.3172]
[1748983713221,6.35976476,158.23,158.2,6.36126772]
[1748983714332,6.35976476,158.23,158.21,6.3171]
[1748983715231,0.04326476,158.23,158.22,6.3167]
[1748983715431,0.04326476,158.23,158.21,11.12820509]
[1748983715734,0.04326476,158.23,158.2,0.04406772]
[1748983716431,0.04326476,158.23,158.21,6.3168]
[1748983719133,0.04326476,158.23,158.2,0.04406772]
[1748983719332,11.12820509,158.21,158.2,0.04406772]
[1748983720135,17.44520509,158.21,158.2,0.04406772]
[1748983720833,6.3194,158.16,158.14,33.7]
[1748983721032,11.12820509,158.18,158.12,2.1135]
[1748983721334,11.12820509,158.14,158.09,35.7632]
[1748983721536,11.12820509,158.14,158.09,33.7]
[1748983721728,11.12820509,158.12,158.07,2.0099]
[1748983721928,0.04089532,158.11,158.08,0.04036112]
[1748983722133,0.04089532,158.11,158.08,6.36226112]
[1748983722333,0.04089532,158.11,158.08,0.04036112]
[1748983722734,0.04089532,158.11,158.09,6.3216]
[1748983723038,0.04089532,158.11,158.08,0.04036112]
[1748983723236,0.04089532,158.11,158.1,6.3215]
[1748983723634,0.04089532,158.11,158.08,6.36236112]
[1748983723928,11.16910041,158.11,158.08,0.04036112]
[1748983725128,17.49040041,158.11,158.08,6.36256112]
[1748983725331,17.49040041,158.11,158.08,0.04036112]
[1748983725539,17.49030041,158.11,158.08,0.04036112]
[1748983726239,17.49030041,158.11,158.08,6.36246112]
[1748983726735,11.16910041,158.11,158.08,0.04036112]
[1748983727236,17.49030041,158.11,158.08,0.04036112]
[1748983728038,6.3215,158.1,158.08,0.04036112]
[1748983729243,17.49030041,158.11,158.08,0.04036112]
[1748983730042,6.3216,158.1,158.08,0.04036112]
[1748983730836,17.49030041,158.11,158.08,0.04036112]
[1748983731240,11.16910041,158.11,158.08,0.04036112]
[1748983734249,6.3217,158.1,158.08,0.04036112]
[1748983734544,11.16910041,158.11,158.08,0.04036112]
[1748983736144,6.3217,158.1,158.08,0.04036112]
[1748983737350,6.36209532,158.11,158.08,6.36256112]
[1748983737650,0.04089532,158.11,158.1,11.12820509]
[1748983737845,0.04089532,158.11,158.1,17.44970509]
[1748983738249,0.04089532,158.11,158.1,6.3215]
[1748983738645,0.04089532,158.11,158.09,17.44990509]
[1748983738848,0.04089532,158.11,158.09,11.12820509]
[1748983739443,11.12820509,158.16,158.09,11.12820509]
[1748983739954,6.3197,158.15,158.12,6.3205]
[1748983740549,6.36011423,158.15,158.12,6.36127488]
[1748983740854,6.36011423,158.15,158.12,0.04077488]
[1748983740855,0.04041423,158.15,158.12,0.04077488]
[1748983741455,0.04041423,158.15,158.12,11.16897997]
[1748983742152,0.04041423,158.15,158.14,11.12820509]
[1748983742360,2.0121,158.21,158.16,11.12820509]
[1748983743050,2.0121,158.21,158.18,6.3181]
[1748983743051,6.3177,158.2,158.18,6.3181]
[1748983743355,0.04094459,158.21,158.17,0.04820866]
[1748983743555,0.04094459,158.21,158.18,11.12820509]
[1748983744558,6.3177,158.2,158.18,11.12820509]
[1748983744857,0.04094459,158.21,158.18,11.12820509]
[1748983746160,6.3177,158.2,158.18,11.12820509]
[1748983746659,0.04094459,158.21,158.17,0.04820866]
[1748983746859,11.16914968,158.21,158.17,0.04820866]
[1748983747361,6.3183,158.18,158.17,0.04820866]
[1748983749756,33.66,158.19,158.17,0.04820866]
[1748983749960,0.04094459,158.21,158.17,0.04820866]
[1748983750361,6.3178,158.2,158.17,0.04820866]
[1748983750664,11.16914968,158.21,158.17,0.04820866]
[1748983751163,6.3182,158.18,158.17,0.04820866]
[1748983751552,6.318,158.19,158.17,0.04820866]
[1748983751958,0.04094459,158.21,158.17,0.04820866]
[1748983752357,6.3177,158.2,158.17,0.04820866]
[1748983752857,6.3179,158.19,158.17,0.04820866]
[1748983753167,11.16914968,158.21,158.17,0.04820866]
[1748983754558,6.3182,158.18,158.17,0.04820866]
[1748983758766,39.9582,158.18,158.17,8.66e-06]
[1748983759069,6.3207,158.12,158.08,13.18260509]
[1748983759268,6.3207,158.12,158.08,19.50460509]
[1748983759864,11.12820509,158.15,158.08,13.18260509]
[1748983760170,0.041609,158.12,158.08,13.23046288]
[1748983761164,6.3212,158.11,158.08,13.23046288]
[1748983761564,6.362409,158.12,158.08,19.55266288]
[1748983761765,0.041609,158.12,158.08,13.23046288]
[1748983761968,0.041609,158.12,158.1,11.12820509]
[1748983762370,0.041609,158.12,158.09,11.12820509]
[1748983763267,6.362409,158.12,158.09,11.12820509]
[1748983764169,0.041609,158.12,158.09,11.12820509]
[1748983765069,0.041609,158.12,158.09,17.44970509]
[1748983765268,0.041609,158.12,158.09,11.12820509]
[1748983765574,0.041609,158.12,158.1,6.3214]
[1748983766267,0.041609,158.12,158.09,17.44980509]
[1748983767868,0.041609,158.12,158.09,11.12820509]
[1748983768275,0.041609,158.12,158.1,6.3211]
[1748983769570,0.041609,158.12,158.11,6.321]
[1748983769973,0.041609,158.12,158.09,11.12820509]
[1748983771067,0.041609,158.12,158.1,6.3212]
[1748983771881,0.041609,158.12,158.09,11.12820509]
[1748983772284,0.041609,158.12,158.09,17.44990509]
[1748983772580,0.041609,158.12,158.09,11.12820509]
[1748983772973,0.041609,158.12,158.09,17.44990509]
[1748983773181,6.362309,158.12,158.09,17.44990509]
[1748983776593,0.041609,158.12,158.1,6.3213]
[1748983778692,0.041609,158.12,158.09,11.12820509]
[1748983779191,6.362309,158.12,158.09,11.12820509]
[1748983779684,6.362309,158.12,158.09,17.44980509]
[1748983781089,0.041609,158.12,158.08,2.10225779]
[1748983781790,0.041609,158.12,158.03,7.83246806]
[1748983781791,11.12820509,158.1,158.01,579.7]
[1748983781992,44.72820509,158.1,158.02,11.12820509]
[1748983782186,11.12820509,158.08,158.02,11.12820509]
[1748983782893,0.04745611,158.07,158.03,0.04453143]
[1748983783891,6.37035611,158.07,158.03,6.36873143]
[1748983784087,0.04745611,158.07,158.03,6.36873143]
[1748983784295,0.04745611,158.07,158.06,6.323]
[1748983784891,0.04745611,158.07,158.05,11.12820509]
[1748983785293,0.04745611,158.07,158.05,17.45140509]
[1748983786394,0.04745611,158.07,158.05,6.3232]
[1748983787692,0.04745611,158.07,158.03,0.04453143]
[1748983788793,6.3236,158.05,158.03,0.04453143]
[1748983789690,0.04745611,158.07,158.03,0.04453143]
[1748983792595,11.12820509,158.06,158.03,0.04453143]
[1748983792800,6.3238,158.04,158.03,0.04453143]
[1748983793202,11.12820509,158.04,157.98,33.6]
[1748983793502,6.3248,158.02,157.98,39.926]
[1748983793695,11.12820509,158.04,157.98,33.6]
[1748983793890,11.12820509,158.04,157.99,6.3256]
[1748983793891,6.3245,158.03,157.99,6.3256]
[1748983794295,6.36601473,158.03,157.99,6.37197764]
[1748983794801,6.36601473,158.03,158.0,6.3253]
[1748983795802,6.36601473,158.03,157.99,6.37197764]
[1748983796003,0.04151473,158.03,157.99,0.04637764]
[1748983796599,0.04151473,158.03,158.01,6.3247]
[1748983797496,6.325,158.01,157.99,0.04637764]
[1748983798403,6.3254,158.0,157.99,0.04637764]
[1748983800206,6.3266,157.97,157.94,140.215175]
[1748983800702,11.12820509,158.0,157.94,138.108375]
[1748983801299,0.04278065,157.99,157.95,0.0467686]
[1748983801795,11.12820509,157.98,157.95,0.0467686]
[1748983801995,11.12820509,157.96,157.89,33.62]
[1748983802201,11.12820509,157.96,157.88,44.74820509]
[1748983803102,0.04049409,157.94,157.88,33.62]
[1748983803298,0.04049409,157.94,157.88,44.74820509]
[1748983803700,11.16869918,157.94,157.88,39.95]
[1748983803901,11.16869918,157.94,157.86,17.44200509]
[1748983804099,11.16869918,157.94,157.86,6.3138]
[1748983804301,6.3295,157.9,157.86,6.3138]
[1748983804499,0.04666399,157.9,157.86,6.3138]
[1748983805104,0.04666399,157.9,157.86,17.44200509]
[1748983805307,0.04666399,157.9,157.82,33.62]
[1748983805606,11.17274496,157.88,157.82,33.62]
[1748983805801,11.17274496,157.88,157.81,11.12820509]
[1748983806111,11.12820509,157.86,157.79,33.56]
[1748983806299,0.04517365,157.84,157.79,33.56]
[1748983806495,0.04517365,157.84,157.78,11.12820509]
[1748983806496,11.17337874,157.84,157.78,11.12820509]
[1748983806700,11.17337874,157.84,157.77,6.3908]
[1748983807097,0.04517365,157.84,157.78,11.12820509]
[1748983807301,0.04517365,157.84,157.8,11.12820509]
[1748983807505,11.17337874,157.84,157.69,7.83246806]
[1748983807705,125.66,157.9,157.62,6.3847]
[1748983807706,0.044915,157.78,157.62,6.3847]
[1748983808005,4.195,157.83,157.69,11.20764353]
[1748983808006,0.04368536,157.72,157.69,11.20764353]
[1748983808211,0.04832163,157.72,157.66,11.20764353]
[1748983808512,11.20764353,157.75,157.66,11.20764353]
[1748983808513,0.04706526,157.71,157.66,11.20764353]
[1748983808704,0.04706526,157.71,157.59,33.56]
[1748983808906,44.768342,157.76,157.59,33.56]
[1748983808907,0.04662145,157.67,157.59,33.56]
[1748983809104,0.04662145,157.67,157.66,6.339]
[1748983809503,0.04662145,157.67,157.64,44.79008959]
[1748983809807,0.04662145,157.67,157.65,6.3391]
[1748983810007,0.04662145,157.67,157.64,44.79008959]
[1748983810306,0.04662145,157.67,157.62,6.3406]
[1748983810307,11.25671104,157.67,157.62,6.3406]
[1748983810507,0.04662145,157.67,157.62,6.3406]
[1748983810705,0.04662145,157.67,157.6,13.39068959]
[1748983810901,0.04662145,157.67,157.6,2.1806]
[1748983811105,0.04662145,157.67,157.59,33.58]
[1748983811106,11.21008959,157.66,157.59,33.58]
[1748983811300,0.04662145,157.67,157.59,33.58]
[1748983811301,16.83789264,157.65,157.59,33.58]
[1748983811506,6.3409,157.62,157.57,6.3425]
[1748983811700,0.04776466,157.64,157.56,33.58]
[1748983811903,16.83789264,157.61,157.56,33.58]
[1748983812101,16.83789264,157.61,157.55,2.1806]
[1748983812506,0.04150613,157.62,157.55,19.01849264]
[1748983812709,4.2027,157.71,157.61,16.83789264]
[1748983812912,4.2027,157.71,157.63,16.83789264]
[1748983813211,33.6,157.73,157.65,16.83789264]
[1748983813813,0.04037301,157.71,157.67,0.04737333]
[1748983814209,6.37737301,157.71,157.67,0.04737333]
[1748983814811,0.04037301,157.71,157.67,0.04737333]
[1748983815311,16.83789264,157.7,157.67,0.04737333]
[1748983815521,0.04037301,157.71,157.6,2.2168]
[1748983815522,16.83789264,157.68,157.6,2.2168]
[1748983815717,16.83789264,157.68,157.6,8.5579]
[1748983815911,16.83789264,157.68,157.6,2.2168]
[1748983816316,6.3398,157.65,157.6,2.2168]
[1748983816518,0.0485509,157.64,157.6,2.2168]
[1748983816721,0.0485509,157.64,157.61,6.3407]
[1748983817715,0.0485509,157.64,157.61,16.83789264]
[1748983817917,0.0485509,157.64,157.63,16.83789264]
[1748983818609,33.62,157.71,157.63,16.83789264]
[1748983818812,33.62,157.71,157.65,16.83789264]
[1748983819112,33.62,157.71,157.64,16.83789264]
[1748983819521,6.3375,157.7,157.65,6.3391]
[1748983819717,0.04443752,157.69,157.66,0.04731562]
[1748983821214,0.04443752,157.69,157.66,6.38631562]
[1748983822820,0.04443752,157.69,157.66,0.04731562]
[1748983823218,0.04443752,157.69,157.67,16.83789264]
[1748983823735,35.8032,157.78,157.69,6.3376]
[1748983823920,35.8032,157.78,157.7,16.83789264]
[1748983824223,6.3362,157.73,157.7,16.83789264]
[1748983824616,6.37725827,157.73,157.7,16.87837678]
[1748983824816,0.04105827,157.73,157.7,0.04048414]
[1748983825411,6.337,157.71,157.7,0.04048414]
[1748983825813,6.337,157.71,157.7,8.414e-05]
[1748983826023,23.17489264,157.71,157.7,8.414e-05]
[1748983826224,23.17789264,157.71,157.61,564.35789264]
[1748983826518,54.67759264,157.7,157.61,547.52]
[1748983826823,6.3386,157.68,157.64,16.83789264]
[1748983827024,33.62,157.7,157.64,16.83789264]
[1748983827324,6.3384,157.68,157.65,0.04816922]
[1748983828224,6.3386,157.67,157.65,0.04816922]
[1748983829822,6.3384,157.68,157.65,0.04816922]
[1748983830019,0.04228658,157.69,157.65,0.04816922]
[1748983830620,0.04228658,157.69,157.65,6.38756922]
[1748983830820,6.3384,157.68,157.65,6.38756922]
[1748983831119,6.3384,157.68,157.65,0.04816922]
[1748983831926,0.04228658,157.69,157.65,0.04816922]
[1748983832824,6.38008658,157.69,157.66,6.3387]
[1748983833229,0.04228658,157.69,157.65,0.04816922]
[1748983833429,0.04228658,157.69,157.66,6.3389]
[1748983833825,0.04228658,157.69,157.65,0.04816922]
[1748983834030,0.04228658,157.69,157.66,6.3389]
[1748983834225,0.04228658,157.69,157.65,0.04816922]
[1748983834829,0.04228658,157.69,157.66,6.3387]
[1748983834830,6.38018658,157.69,157.66,6.3387]
[1748983835030,0.04228658,157.69,157.65,0.04816922]
[1748983835730,6.3385,157.68,157.65,0.04816922]
[1748983835931,0.04228658,157.69,157.65,0.04816922]
[1748983836720,0.04228658,157.69,157.66,16.83789264]
[1748983836930,6.3362,157.73,157.68,16.83789264]
[1748983837122,6.3362,157.73,157.68,50.45789264]
[1748983837833,6.3367,157.72,157.68,56.79589264]
[1748983838138,0.04263684,157.72,157.68,50.50142613]
[1748983838727,6.337,157.71,157.69,16.83789264]
[1748983839425,6.3374,157.7,157.69,16.83789264]
[1748983839624,0.04263684,157.72,157.68,33.66353349]
[1748983839935,50.50052948,157.72,157.68,0.04353349]
[1748983840134,6.3378,157.69,157.68,0.04353349]
[1748983840631,6.37943684,157.72,157.69,6.3378]
[1748983840835,6.37943684,157.72,157.69,23.17569264]
[1748983842033,0.04263684,157.72,157.7,6.3372]
[1748983842435,0.04263684,157.72,157.69,16.83789264]
[1748983843431,6.37923684,157.72,157.69,16.83789264]
[1748983843636,0.04263684,157.72,157.69,16.83789264]
[1748983844936,6.37923684,157.72,157.69,16.83789264]
[1748983845137,0.04263684,157.72,157.69,16.83789264]
[1748983845634,0.04263684,157.72,157.7,6.3371]
[1748983847035,0.04263684,157.72,157.7,6.3374]
[1748983849238,0.04263684,157.72,157.69,16.83789264]
[1748983849437,0.04263684,157.72,157.68,0.04353349]
[1748983849838,6.3373,157.71,157.68,0.04353349]
[1748983850140,0.04263684,157.72,157.69,6.3376]
[1748983850731,0.04263684,157.72,157.69,16.83789264]
[1748983851137,0.04263684,157.72,157.7,6.3374]
[1748983851843,0.04263684,157.72,157.69,23.17549264]
[1748983852337,6.37943684,157.72,157.69,16.83789264]
[1748983852643,0.04263684,157.72,157.69,16.83789264]
[1748983853038,0.04263684,157.72,157.7,6.3372]
[1748983854337,0.04263684,157.72,157.69,16.83789264]
[1748983854934,6.37953684,157.72,157.69,16.83789264]
[1748983855340,6.37953684,157.72,157.69,23.17539264]
[1748983855542,6.37953684,157.72,157.69,16.83789264]
[1748983855934,6.37953684,157.72,157.7,6.3374]
[1748983856433,475.31789264,157.71,157.61,7.65193272]
[1748983856635,16.83789264,157.66,157.56,16.83789264]
[1748983856835,464.9038,157.71,157.53,35.6423]
[1748983856836,6.3429,157.57,157.53,35.6423]
[1748983857037,16.83789264,157.59,157.53,35.6423]
[1748983857237,16.83789264,157.59,157.53,33.62]
[1748983857437,0.04183994,157.58,157.54,0.04716515]
[1748983857637,0.04183994,157.58,157.54,6.39076515]
[1748983857830,0.04183994,157.58,157.54,0.04716515]
[1748983858035,0.04183994,157.58,157.55,6.3433]
[1748983858341,0.04183994,157.58,157.54,0.04716515]
[1748983859936,0.04183994,157.58,157.57,6.3426]
[1748983860543,0.04183994,157.58,157.56,6.3429]
[1748983860736,0.04183994,157.58,157.54,0.04716515]
[1748983860934,0.04183994,157.58,157.57,23.18049264]
[1748983861139,6.3217,157.67,157.57,50.45789264]
[1748983861140,2.2184,157.67,157.57,50.45789264]
[1748983861341,33.62,157.68,157.61,16.83789264]
[1748983861542,33.62,157.68,157.61,50.45789264]
[1748983862137,0.04166634,157.66,157.63,0.04035115]
[1748983863341,0.04166634,157.66,157.63,6.38025115]
[1748983864147,0.04166634,157.66,157.63,0.04035115]
[1748983866549,6.3396,157.65,157.63,0.04035115]
[1748983869957,6.3398,157.64,157.63,0.04035115]
[1748983871454,6.3418,157.59,157.56,6.3429]
[1748983871649,2.0281,157.65,157.57,16.83789264]
[1748983872156,33.62,157.66,157.59,16.83789264]
[1748983872347,33.62,157.66,157.61,0.04825194]
[1748983872547,0.04152513,157.64,157.61,0.04825194]
[1748983872746,0.04152513,157.64,157.61,16.88614458]
[1748983873160,6.3405,157.63,157.61,16.88614458]
[1748983873353,0.04152513,157.64,157.61,0.04825194]
[1748983873857,6.3404,157.63,157.61,0.04825194]
[1748983874349,6.3406,157.62,157.61,0.04825194]
[1748983875255,0.04152513,157.64,157.61,0.04825194]
[1748983875450,0.04152513,157.64,157.62,16.83789264]
[1748983875753,0.04152513,157.64,157.63,6.3402]
[1748983887262,0.04152513,157.64,157.62,23.17829264]
[1748983888558,0.04152513,157.64,157.61,0.04825194]
[1748983889056,6.3406,157.62,157.61,0.04825194]
[1748983890464,6.342,157.59,157.56,6.3428]
[1748983891365,6.3830016,157.59,157.56,6.3428]
[1748983891565,0.0410016,157.59,157.55,564.61789264]
[1748983891762,0.0410016,157.59,157.57,16.83789264]
[1748983891968,0.0410016,157.59,157.58,6.3422]
[1748983892572,0.0410016,157.59,157.57,23.18029264]
[1748983892971,6.3831016,157.59,157.56,6.343]
[1748983893773,6.3831016,157.59,157.57,6.3426]
[1748983893977,6.3831016,157.59,157.5,7.65193272]
[1748983893978,0.0410016,157.59,157.5,7.65193272]
[1748983894177,16.83789264,157.57,157.49,16.83789264]
[1748983894375,0.04342212,157.55,157.48,16.83789264]
[1748983894571,0.04342212,157.55,157.46,127.0584321]
[1748983894773,0.04342212,157.55,157.5,16.83789264]
[1748983895164,6.3439,157.54,157.5,23.18329264]
[1748983895669,6.38692212,157.55,157.51,6.3448]
[1748983895868,6.38692212,157.55,157.5,16.83789264]
[1748983896062,6.38692212,157.55,157.49,33.62]
[1748983896265,6.38692212,157.55,157.51,6.3448]
[1748983896473,6.38692212,157.55,157.49,33.62]
[1748983896969,6.38692212,157.55,157.52,6.3443]
[1748983897162,6.38692212,157.55,157.49,33.62]
[1748983897163,0.04342212,157.55,157.5,16.83789264]
[1748983897367,0.04342212,157.55,157.5,21.10319264]
[1748983897571,0.04342212,157.55,157.54,6.3438]
[1748983899474,16.83789264,157.65,157.54,16.83789264]
[1748983899671,12.6722,157.74,157.61,16.83789264]
[1748983899672,33.62,157.68,157.61,16.83789264]
[1748983899873,4.3316,157.69,157.61,16.83789264]
[1748983900073,6.3389,157.67,157.64,6.3395]
[1748983900474,6.3389,157.67,157.64,6.38273342]
[1748983900475,6.38582711,157.67,157.64,6.38273342]
[1748983901074,0.04692711,157.67,157.65,6.3394]
[1748983902374,0.04692711,157.67,157.66,6.339]
[1748983903178,0.04692711,157.67,157.65,6.3391]
[1748983903481,0.04692711,157.67,157.64,0.04323342]
[1748983903773,6.38582711,157.67,157.64,6.38283342]
[1748983904478,0.04692711,157.67,157.64,0.04323342]
[1748983904875,0.04692711,157.67,157.65,6.3392]
[1748983905384,0.04692711,157.67,157.64,0.04323342]
[1748983905681,0.04692711,157.67,157.56,7.65193272]
[1748983905682,16.83789264,157.66,157.56,16.83789264]
[1748983905974,16.83789264,157.66,157.57,585.9401]
[1748983905975,16.83789264,157.64,157.57,585.9401]
[1748983906177,16.83789264,157.64,157.57,33.62]
[1748983906372,16.83789264,157.62,157.57,33.62]
[1748983906682,16.83789264,157.6,157.54,33.62]
[1748983907174,6.3427,157.57,157.54,39.9638]
[1748983907382,6.39059237,157.57,157.54,39.9638]
[1748983909775,0.04789237,157.57,157.55,6.3433]
[1748983910573,2.1845,157.65,157.55,16.83789264]
[1748983910775,52.64239264,157.65,157.57,16.83789264]
[1748983910978,6.3404,157.63,157.57,16.83789264]
[1748983911181,52.64239264,157.65,157.57,16.83789264]
[1748983911575,6.3414,157.61,157.59,0.0411582]
[1748983913182,6.3414,157.6,157.59,0.0411582]
[1748983921995,6.3412,157.61,157.59,0.0411582]
[1748983922197,16.87923886,157.63,157.59,0.0411582]
[1748983922398,0.04134622,157.63,157.59,0.0411582]
[1748983922598,6.3414,157.6,157.59,0.0411582]
[1748983923198,6.3414,157.6,157.59,5.82e-05]
[1748983923695,6.34,157.6,157.48,33.62]
[1748983923897,16.83789264,157.6,157.51,16.83789264]
[1748983924192,33.62,157.59,157.54,6.3437]
[1748983924496,33.62,157.6,157.53,16.83789264]
[1748983924799,33.62,157.6,157.55,0.02434131]
[1748983924800,0.04292433,157.58,157.55,0.02434131]
[1748983925396,6.3427,157.57,157.55,0.02434131]
[1748983925998,6.38522433,157.58,157.55,0.02434131]
[1748983926199,0.04292433,157.58,157.55,6.36754131]
[1748983926396,0.04292433,157.58,157.55,0.02434131]
[1748983927001,6.38542433,157.58,157.55,6.36764131]
[1748983928294,0.04292433,157.58,157.55,0.02434131]